Cogmind - Beta 14 @@@ ROGUE MODE // 2024.08.28 @ 20:48:09 Player: puppuppit Result: Destroyed by as-62243 with Assembled Heavy Rifle Performance ------------- Evolutions (0) 0 Regions Visited (2) 400 Robots Destroyed (27) 135 Value Destroyed (536) 536 Prototype IDs (0) 0 Alien Tech Used (0) 0 Bonus (18) 18 TOTAL SCORE: 1089 Bonus ------- High Alert Combat Kills 18 Cogmind --------- Core Integrity 0/250 Matter 279/300 Energy 68/100 System Corruption 0% Temperature Cool (4) Movement Hovering (56) Location -10/Mines Parts ------- > --- POWER (1) -------- (None) > --- PROPULSION (2) --- Hover Unit Hover Unit > --- UTILITY (2) ------ Medium Storage Unit Hacking Suite > --- WEAPON (2) ------- Light Assault Rifle Light Assault Rifle > --- INVENTORY (10) --- Hover Unit Large Matter Pod (150) Weight Redist. System Hacking Suite Assault Rifle Datajack Peak State ------------ > --- POWER ------------ (None) > --- PROPULSION ------- Hover Unit Hover Unit > --- UTILITY ---------- Medium Storage Unit Hacking Suite > --- WEAPON ----------- Light Assault Rifle Light Assault Rifle > --- INVENTORY -------- Hover Unit Hover Unit Hover Unit Hover Unit Large Matter Pod Weight Redist. System Hacking Suite Assault Rifle Datajack [Rating: 9] Favorites ----------- Power Ion Engine Engine Ion Engine Propulsion Wheel Wheel Wheel Hover Unit Hover Unit Utility Medium Storage Unit Device Tractor Beam Storage Medium Storage Unit Processor Transport Network Coupler Hackware Hacking Suite Protection Light Armor Plating Weapon Assault Rifle Ballistic Gun Assault Rifle Build | -11 -10 -10 ------- Run | Yrd Mat Min Slots Evolved . | . . . Power . | . . . Propulsion . | . . . Utility . | . . . Weapon . | . . . Parts Attached 31 | 10 18 3 Power 4 | 1 3 . Engine 4 | 1 3 . Core . | . . . Reactor . | . . . Propulsion 14 | 4 7 3 Treads . | . . . Leg . | . . . Wheel 9 | 4 5 . Hover 5 | . 2 3 Flight . | . . . Utility 8 | 2 6 . Device 2 | 1 1 . Storage 2 | 1 1 . Processor 2 | . 2 . Hackware 1 | . 1 . Protection 1 | . 1 . Artifact . | . . . Weapon 5 | 3 2 . Energy Gun . | . . . Energy Cannon . | . . . Ballistic Gun 5 | 3 2 . Ballistic Cannon . | . . . Launcher . | . . . Special Weapon . | . . . Impact Weapon . | . . . Slashing Weapon . | . . . Piercing Weapon . | . . . Special Melee Weapon . | . . . Unidentified Prototypes . | . . . Parts Lost 9 | . 6 3 Power . | . . . Propulsion 6 | . 3 3 Utility 2 | . 2 . Weapon 1 | . 1 . Highest Loss Streak 4 | . 4 3 To Critical Strikes . | . . . Average Slot Usage (%) 95 | . 95 85 Engine 11 | . 12 . Wheel 22 | . 24 . Hover 5 | . 3 28 Device 4 | . 4 . Storage 14 | . 14 14 Processor 1 | . 1 . Hackware 1 | . . 14 Protection 5 | . 5 . Ballistic Gun 28 | . 28 28 Peak Build Rating 9 | 7 9 9 Average Rating 7 | 5 7 8 On Entrance 5 | . 7 9 Naked Turns . | . . . Heaviest Build 22 | 15 22 12 Greatest Support 26 | 26 20 12 Greatest Overweight (x) 1 | . 1 . Average Overweight (x) . | . . . Largest Inventory Capacity 10 | 8 10 10 Average Capacity 9 | 7 9 10 Most Carried 10 | 5 10 9 Average Carried 7 | 1 7 8 Final Capacity 10 | 8 10 10 Final Carried 9 | 4 9 6 Class Distribution -------------------- 61% | Mutant 38% | Scavenger-Mutant Dominant Class ---------------- Mutant | -10/Materials Scavenger-Mutant | -10/Mines Resources | -11 -10 -10 ----------- Run | Yrd Mat Min Matter Collected 1080 | 344 736 . Remotely 457 | 163 294 . Salvage Created 948 | 122 826 . Parts 77 | 17 60 . Haulers Intercepted 2 | . 2 . Recyclers Shooed . | . . . Parts Field Recycled . | . . . Retrieved Matter . | . . . Parts Self-Destructed . | . . . Prevented . | . . . Kills | -11 -10 -10 ------- Run | Yrd Mat Min Combat Hostiles Destroyed 13 | . 13 . Guns 13 | . 13 . Classes Destroyed 7 | 2 5 . Tunneler 4 | 3 1 . Hauler 2 | . 2 . Recycler 2 | 1 1 . Operator 3 | . 3 . Watcher 3 | . 3 . Swarmer 3 | . 3 . Grunt 10 | . 10 . Best Kill Streak 4 | 4 3 . Combat Bots Only 3 | . 3 . Max Kills in Single Turn 1 | 1 1 . Gunslinging . | . . . Exploded . | . . . Melee . | . . . Uniques/NPCs Destroyed . | . . . Combat | -11 -10 -10 -------- Run | Yrd Mat Min Hostile Shots Fired 121 | . 85 36 Missed 33 | . 17 16 Damage Taken 1048 | . 767 281 Core 252 | . 148 104 Absorbed by Shields . | . . . Core Remaining (%) 100 | 100 . . Volleys Fired 88 | 8 79 1 Largest 2 | 2 2 2 Hottest 40 | 40 40 40 Shots Fired 176 | 16 158 2 Gun 176 | 16 158 2 Cannon . | . . . Launcher . | . . . Special . | . . . Kinetic 176 | 16 158 2 Thermal . | . . . Explosive . | . . . Electromagnetic . | . . . Robot Hit Streak 6 | 3 6 1 Robot Miss Streak 6 | 2 6 1 Penetration Max . | . . . Secondary Targets 1 | . 1 . Max Gunslinging Chain 1 | . 1 . Shots Hit Robots 88 | 7 80 1 Core Hits 44 | 5 39 . Critical Kills 1 | . 1 . Critical Parts Destroyed 2 | . 2 . Critical Strikes 3 | . 3 . Destroy 3 | . 3 . Melee Attacks . | . . . Impact . | . . . Slashing . | . . . Piercing . | . . . Sneak Attacks . | . . . Combat Hostiles . | . . . Follow-up Attacks . | . . . Damage Inflicted 1138 | 111 1012 15 Guns 1132 | 111 1012 9 Cannons . | . . . Explosions . | . . . Melee . | . . . Ramming 6 | . . 6 Kinetic 1132 | 111 1012 9 Thermal . | . . . Explosive . | . . . Electromagnetic . | . . . Impact . | . . . Slashing . | . . . Piercing . | . . . Highest Corruption . | . . . Average Corruption . | . . . Corruption Purged . | . . . Corruption Blocked . | . . . Overload Shots . | . . . Overflow Damage . | . . . Projectiles . | . . . Explosions . | . . . Melee . | . . . Knockbacks . | . . . Impact . | . . . Kinetic . | . . . Secondary . | . . . Self-Inflicted Damage 3 | . . 3 Shots . | . . . Rammed 1 | . . 1 Targets Rammed 1 | . . 1 Kicked . | . . . Crushed . | . . . Highest Temperature 20 | . 20 1 Average Temperature 4 | . 4 1 Received Heat Transfer 406 | . 366 40 Siege Activations . | . . . Robots Corrupted . | . . . Combat Hostiles . | . . . Parts Fried . | . . . Impact Corruptions . | . . . Robots Melted . | . . . Combat Hostiles . | . . . Parts Melted . | . . . Heat Transferred . | . . . Parts Sabotaged . | . . . Parts Stolen . | . . . Parts Stripped . | . . . Power Chain Reactions . | . . . Alert | -11 -10 -10 ------- Run | Yrd Mat Min Peak Influence 446 | 20 446 156 Initial 156 | . 13 156 Average 211 | 6 235 151 Maximum Alert Level 2 | . 2 . Low Security (%) 40 | 100 30 100 Level 1 55 | . 65 . Level 2 3 | . 3 . Level 3 . | . . . Level 4 . | . . . Level 5 . | . . . High Security . | . . . Max Security . | . . . Squads Dispatched 4 | . 4 . Investigation 1 | . 1 . Extermination . | . . . Reinforcement 3 | . 3 . Assault . | . . . Garrison . | . . . Intercept . | . . . Searches Triggered . | . . . Construction Impeded . | . . . Haulers Reinforced . | . . . Active Scanning Responses . | . . . Cargo Convoy Interrupts . | . . . Stealth | -11 -10 -10 --------- Run | Yrd Mat Min Distress Signals 4 | . 4 . Communications Jammed . | . . . Distress Signals . | . . . Times Spotted 58 | . 33 25 Peak Tracking Total 22 | . 9 22 Tactical Retreats 6 | . 5 1 Traps | -11 -10 -10 ------- Run | Yrd Mat Min Traps Triggered 1 | . 1 . Indirectly . | . . . Trap Hack Attempts . | . . . Triggered . | . . . Disarmed . | . . . Reprogrammed . | . . . Reused . | . . . Traps Extracted . | . . . Installed . | . . . Triggered . | . . . Machines | -11 -10 -10 ---------- Run | Yrd Mat Min Machines Disabled . | . . . Max in Single Turn . | . . . Machines Repaired . | . . . Machines Dismantled . | . . . Machines Sabotaged . | . . . Overloaded Fab Kills . | . . . Hacking | -11 -10 -10 --------- Run | Yrd Mat Min Machines Accessed 1 | . 1 . Terminals 1 | . 1 . Fabricators . | . . . Repair Stations . | . . . Recycling Units . | . . . Scanalyzers . | . . . Garrison Access . | . . . Total Hacks 4 | . 4 . Successful 1 | . 1 . Failed 2 | . 2 . Catastrophic . | . . . Database Lockouts 1 | . 1 . Manual 4 | . 4 . Terminals 4 | . 4 . Fabricators . | . . . Repair Stations . | . . . Recycling Units . | . . . Scanalyzers . | . . . Garrison Access . | . . . Terminal Hacks 1 | . 1 . Robot Analysis 1 | . 1 . Fabricator Hacks . | . . . Repair Station Hacks . | . . . Recycling Unit Hacks . | . . . Scanalyzer . | . . . Garrison Access Hacks . | . . . Unauthorized Hacks . | . . . Terminals . | . . . Fabricators . | . . . Repair Stations . | . . . Recycling Units . | . . . Scanalyzers . | . . . Garrison Access . | . . . Data Cores Recovered . | . . . Used . | . . . Hacking Detections 1 | . 1 . Full Trace Events . | . . . Feedback Events . | . . . Feedback Blocked . | . . . Robot Schematics Acquired . | . . . Robots Built . | . . . Authchips . | . . . Time . | . . . Total Robot Build Rating . | . . . Part Schematics Acquired . | . . . Parts Built . | . . . Authchips . | . . . Time . | . . . Total Part Build Rating . | . . . Parts Repaired . | . . . Time . | . . . Parts Recycled . | . . . Recycled Matter . | . . . Retrieved Matter . | . . . Retrieved Components . | . . . Parts Scanalyzed . | . . . Part Schematics Acquired . | . . . Parts Damaged . | . . . Bothacking | -11 -10 -10 ------------ Run | Yrd Mat Min Used RIF Installer . | . . . Robots Hacked . | . . . Non-combat . | . . . Combat . | . . . Robot Hacks Applied . | . . . Relay Couplers Released . | . . . Fabnet Peak Effective % . | . . . Robots Rewired . | . . . Allies Hacked . | . . . Hacks Repelled . | . . . Allies | -11 -10 -10 -------- Run | Yrd Mat Min Total Allies . | . . . Largest Group . | . . . Highest-Rated Group . | . . . Highest-Rated Ally . | . . . Total Orders . | . . . Ally Attacks . | . . . Total Damage . | . . . Kills . | . . . Allies Corrupted . | . . . Allies Melted . | . . . Intel | -11 -10 -10 ------- Run | Yrd Mat Min Robot Analysis Total 1 | . 1 . Derelict Logs Recovered . | . . . Drone Launches . | . . . Drone Recoveries . | . . . Exploration | -11 -10 -10 ------------- Run | Yrd Mat Min Turns Passed 901 | 73 769 59 Spaces Moved 702 | 36 574 92 Core 1 | 1 . . Treads . | . . . Legs . | . . . Wheels 502 | 35 467 . Hover 199 | . 107 92 Flight . | . . . Fastest Speed 50 | 50 56 56 Average Speed 77 | 87 80 56 Slowest Speed 116 | 100 116 56 Overloaded Moves . | . . . Propulsion Burnouts . | . . . Robots Hopped . | . . . Cave-ins Triggered . | . . . Exploration Rate (%) 27 | 4 55 24 Regions Visited 2 Branch Regions 1 Pre-discovered Areas . | . . . Known Exits Taken . | . . . Unknown Exits Taken 2 | 1 1 . Scrap Searched . | . . . Spaces Dug . | . . . Terrain Destroyed . | . . . Melee . | . . . Projectile . | . . . AOE . | . . . Terrain Rammed . | . . . Walls Destroyed . | . . . Machines Disabled . | . . . Actions | -11 -10 -10 --------- Run | Yrd Mat Min Total 884 | 56 730 98 Wait 33 | . 32 1 Move 700 | 35 573 92 Hop . | . . . Pick Up 16 | 2 14 . Fast Attach 11 | 7 4 . Attach 10 | . 7 3 Detach 3 | . 3 . Swap 10 | 3 7 . Drop 12 | 1 11 . Fire 88 | 8 79 1 Melee . | . . . Ram 1 | . . 1 Kick . | . . . Crush . | . . . Escape Stasis . | . . . Rewire . | . . . Trap . | . . . Miscellaneous . | . . . Route ------- -11/Scrapyard -10/Materials (discovered 4 exits: [*Mat x2] / [*Min x2]) -10/Mines (discovered 1 exit: [*Mat]) History --------- Turn | Location | Event 26 | -11/Scrapyard | Discovered new exit (range 16) 74 | -11/Scrapyard | Entered Materials 224 | -10/Materials | Discovered new exit (range 16) 311 | -10/Materials | Build established: Mutant 485 | -10/Materials | Core integrity fell below 50% 507 | -10/Materials | Lost 4 parts (3n1u) 611 | -10/Materials | Discovered new exit (range 15) 698 | -10/Materials | Discovered new exit (range 16) 797 | -10/Materials | Discovered new exit (range 10) 822 | -10/Materials | Central database locked down 843 | -10/Materials | Entered Mines 852 | -10/Mines | Discovered new exit (range 3) 872 | -10/Mines | Assembled infested the area 877 | -10/Mines | Assisted by a Guerilla fighting off Assembled 899 | -10/Mines | Core integrity fell below 20% 902 | -10/Mines | Destroyed by as-62243 with Assembled Heavy Rifle Last Messages --------------- 00827_ T-07 Excavator is excavating. 00831_ K-01 Serf collects debris. 00831_ T-07 Excavator is excavating. 00834_ K-01 Serf collects debris. 00836_ Acquired 6 matter. 00837_ K-01 Serf cleans the Atomic Centrifuge. LOCATION=UNKNOWN GOAL=ESCAPE 00852_ EXIT=FOUND 00872_ ALERT: Infestation in the mines, dispatching Demolisher response squad. 00874_ T-07 Excavator destroyed. 00877_ A derelict emerges from the shadows: "You need to get out of here! I've been tracking a group of Assembled to figure out where they're coming from, and they're closing on this area, come on!" 00877_ ZJ-IAP(h): "I'll hold them off! Go on ahead or try to find another way!" 00879_ HV Slug penetrates Wall. 00882_ HV Slug penetrates as-03617. 00883_ ZJ-IAP(h) destroyed. 00889_ Hover Unit destroyed. 00898_ Slammed into as-47225. Map ----- +----------------------------------------------------+ | ?????????????????????????????????????## ##? | | ????????????????? ??????????????????# < #? | | ????????????????? ??????????????????# #? | | ????????????????? ??????????????????## ### #?? | | ???????????????## ???????????????????## #?####?? | | ???????????????# ????????????????????# #??????? | | ???????????????# ????????????????????# #??????? | | ???????????????# ?????????????????#### #??????? | | ??????????????? ?????????????????# #??????? | | ??????????????? ?????????????????# ########??? | | ???????????????# #?????????????????# #??## #??? | | ???????????????# #????????????????## #### #??? | | ???????????????# #????????????????# #??? | | ???????????????# #????????????????# #?? | | ???????????????# #????????????????# ## #?? | | ???????????????# ##########???????# ##### ##?? | | ???????????????# #???????# #???####??? | | ???????????????# #??##???# ##????????? | | ???????????????### ###### ### #?# #% ##???????? | | ?????????????????# #???? # =!!%* ##??????? | | ?????????????????# #????# % % !%==! ##?????? | | ?????????????????# #???## %= =%= ####??? | | ?????????????????# #?### a % % = ##?? | | ?????????????????# ### * ##? | | ?????????????????# a aa a % #? | | ?????????????????####aa @ a ###### #? | | ????????????????????# #???## ##? | | ????????????????????## ### ###?? | | ?????????????????????## % ?####???? | | ??????????????????????## ????????? | | ???????????????????????# ## ????????? | | ??????????????????????# ##?### ????????? | | ??????????????????????# #?????# ?????????? | | ??????????????????????# % #????????????????? | | ?????????????????????? #????????????????? | | ?????????????????????? ##????????????????? | | ?????????????????????? < ###?????????????????? | | ?????????????????????? ##???????????????????? | | ????????????????????? #????????????????????? | | ????????????????????? ????????????????????? | | ??????????????????????? ????????????????????? | | ???????????????????????# ?????????????????????? | | ????????????????????????????????????????????????? | | ????????????????????????????????????????????????? | | ????????????????????????????????????????????????? | | ????????????????????????????????????????????????? | | ????????????????????????????????????????????????? | | ????????????????????????????????????????????????? | | ????????????????????????????????????????????????? | | ????????????????????????????????????????????????? | +----------------------------------------------------+ Best States ------------- Heat Dissipation 25 Energy Generation 10 Energy Capacity 250 Matter Stores 300 Matter Capacity 300 Sight Range 18 Terrain Scan Density 10 Armor Coverage 150 Evasion (%) 53 Offensive Hacking 10 Item Schematics ----------------- None Robot Schematics ------------------ None Fabricated ------------ Nothing Alien Tech Used ----------------- None Achievements -------------- None Challenges ------------ None Game ------ Seed LobotomyRecoilCoupler Manual? 0 Play Time 00:12:23 Cumulative 453.7 hours Start 2024.08.28 @ 20:36:39 End 2024.08.28 @ 20:48:09 Sessions 1 Manual Loads 0 Difficulty Rogue Special Mode None Game No. 169 Rogue 169 Adventurer 0 Explorer 0 Win Type - Total 4 Types 0/0/2/2/0/0/0/0/0 Lore% 46 Gallery% 75 Achievement% 66 Wizard Run 0 Options --------- Layout 0 ASCII 0 Keyboard 1 Movement Arrows Keybinds 0 Fullscreen 1 Font 12/Proggy Map View 83x54 Zoom Use 0% Tactical HUD 1 Map Filters NONE Filters NONE Steam 0 RUN: adcc73b0-a596-4d55-a492-15e6b27151d5